[Event "Early-Titled-Tuesday-Blitz-January-23-2024"]
[Site "Chess.com"]
[Date "2024.01.23"]
[Round "1"]
[White "AlexTruskavetsky"]
[Black "Kopytkin"]
[Result "1/2-1/2"]
[WhiteElo "2688"]
[BlackElo "2395"]
[TimeControl "180+1"]
[EndTime "8:09:59 PST"]
[Termination "Game drawn by 50-move rule"]

1. e4 {[%clk 0:03:00.7]} 1... Nf6 {[%clk 0:02:59.8]} 2. e5 {[%clk 0:03:00.4]}
2... Nd5 {[%clk 0:03:00.1]} 3. d4 {[%clk 0:03:00.9]} 3... d6 {[%clk 0:03:00.5]}
4. c4 {[%clk 0:03:01.4]} 4... Nb6 {[%clk 0:03:00.8]} 5. f4 {[%clk 0:03:01.3]}
5... dxe5 {[%clk 0:02:53]} 6. fxe5 {[%clk 0:03:02.2]} 6... c5 {[%clk 0:02:52.9]}
7. d5 {[%clk 0:03:02.2]} 7... e6 {[%clk 0:02:51.8]} 8. Nc3 {[%clk 0:03:02.3]}
8... exd5 {[%clk 0:02:52.1]} 9. cxd5 {[%clk 0:03:03.2]} 9... c4 {[%clk
0:02:52.6]} 10. Nf3 {[%clk 0:03:00.7]} 10... Bc5 {[%clk 0:02:51.5]} 11. Bxc4
{[%clk 0:03:00.3]} 11... O-O {[%clk 0:02:50.6]} 12. Bd3 {[%clk 0:02:59.8]} 12...
Bg4 {[%clk 0:02:46.1]} 13. Qe2 {[%clk 0:02:49.5]} 13... Re8 {[%clk 0:02:36.3]}
14. Qe4 {[%clk 0:02:44.7]} 14... f5 {[%clk 0:02:28.2]} 15. Qe2 {[%clk
0:02:41.7]} 15... N8d7 {[%clk 0:01:21.7]} 16. e6 {[%clk 0:01:36.5]} 16... Nf6
{[%clk 0:01:20.1]} 17. Bg5 {[%clk 0:01:36.4]} 17... h6 {[%clk 0:00:46.5]} 18.
Bxf6 {[%clk 0:01:34.6]} 18... Qxf6 {[%clk 0:00:47.4]} 19. O-O-O {[%clk
0:01:28.7]} 19... Bb4 {[%clk 0:00:16.6]} 20. Qe5 {[%clk 0:01:28.7]} 20... Bxc3
{[%clk 0:00:14.3]} 21. bxc3 {[%clk 0:01:26.1]} 21... Qxe5 {[%clk 0:00:12]} 22.
Nxe5 {[%clk 0:01:27]} 22... Bxd1 {[%clk 0:00:12.3]} 23. Rxd1 {[%clk 0:01:27.5]}
23... Nxd5 {[%clk 0:00:12.9]} 24. Bc4 {[%clk 0:01:26.2]} 24... Ne3 {[%clk
0:00:13.1]} 25. Re1 {[%clk 0:01:22.7]} 25... Nxc4 {[%clk 0:00:12.7]} 26. Nxc4
{[%clk 0:01:23.6]} 26... Rac8 {[%clk 0:00:12.6]} 27. Nd6 {[%clk 0:01:23.7]}
27... Rxc3+ {[%clk 0:00:12.7]} 28. Kb2 {[%clk 0:01:24]} 28... Rcc8 {[%clk
0:00:13.3]} 29. Nxf5 {[%clk 0:01:21.6]} 29... Rc6 {[%clk 0:00:11]} 30. e7 {[%clk
0:01:21.5]} 30... Kf7 {[%clk 0:00:10.8]} 31. g4 {[%clk 0:01:21.8]} 31... g6
{[%clk 0:00:09.4]} 32. Nxh6+ {[%clk 0:01:21.8]} 32... Kg7 {[%clk 0:00:09.6]} 33.
g5 {[%clk 0:01:22.5]} 33... Rc7 {[%clk 0:00:09.7]} 34. Ng4 {[%clk 0:01:23]}
34... Rcxe7 {[%clk 0:00:09.9]} 35. Rd1 {[%clk 0:01:22.4]} 35... Re2+ {[%clk
0:00:10.1]} 36. Kb3 {[%clk 0:01:21.3]} 36... R2e4 {[%clk 0:00:07.9]} 37. Nf6
{[%clk 0:01:21.5]} 37... Re3+ {[%clk 0:00:08.3]} 38. Kc4 {[%clk 0:01:21.5]}
38... R8e7 {[%clk 0:00:08.8]} 39. Rd8 {[%clk 0:01:17.7]} 39... Rc7+ {[%clk
0:00:06.9]} 40. Kd4 {[%clk 0:01:15.9]} 40... Re1 {[%clk 0:00:03.8]} 41. Ne8+
{[%clk 0:01:15.4]} 41... Kh7 {[%clk 0:00:03.2]} 42. Nf6+ {[%clk 0:01:06.9]}
42... Kg7 {[%clk 0:00:03.4]} 43. Rg8+ {[%clk 0:01:05.6]} 43... Kf7 {[%clk
0:00:03.1]} 44. Rh8 {[%clk 0:01:06.3]} 44... Rd1+ {[%clk 0:00:03.5]} 45. Ke3
{[%clk 0:01:06.6]} 45... Re7+ {[%clk 0:00:03.8]} 46. Kf2 {[%clk 0:01:06.7]}
46... Ke6 {[%clk 0:00:04.3]} 47. Ng4 {[%clk 0:00:58.9]} 47... Kf5 {[%clk
0:00:04.2]} 48. Ne3+ {[%clk 0:00:56.9]} 48... Rxe3 {[%clk 0:00:04.8]} 49. Kxe3
{[%clk 0:00:57.8]} 49... Rd7 {[%clk 0:00:04.8]} 50. h4 {[%clk 0:00:57.3]} 50...
Kg4 {[%clk 0:00:05]} 51. Rg8 {[%clk 0:00:57.2]} 51... Kxh4 {[%clk 0:00:04.5]}
52. Rxg6 {[%clk 0:00:57.4]} 52... Kg4 {[%clk 0:00:03.6]} 53. Rg8 {[%clk
0:00:56.8]} 53... Kf5 {[%clk 0:00:03.8]} 54. g6 {[%clk 0:00:51.5]} 54... a6
{[%clk 0:00:04.2]} 55. a4 {[%clk 0:00:50.6]} 55... Kf6 {[%clk 0:00:03.8]} 56.
Ke4 {[%clk 0:00:44.4]} 56... Rg7 {[%clk 0:00:03.9]} 57. Rb8 {[%clk 0:00:20.8]}
57... Kxg6 {[%clk 0:00:03.6]} 58. a5 {[%clk 0:00:21.4]} 58... Kf6 {[%clk
0:00:03.7]} 59. Kd5 {[%clk 0:00:21.9]} 59... Re7 {[%clk 0:00:02.9]} 60. Kc5
{[%clk 0:00:22]} 60... Ke6 {[%clk 0:00:03.1]} 61. Kb6 {[%clk 0:00:22.5]} 61...
Kd6 {[%clk 0:00:02.9]} 62. Rd8+ {[%clk 0:00:22.6]} 62... Rd7 {[%clk 0:00:02.3]}
63. Rh8 {[%clk 0:00:20.9]} 63... Ke6 {[%clk 0:00:02.6]} 64. Rh1 {[%clk 0:00:21]}
64... Ke7 {[%clk 0:00:02.8]} 65. Re1+ {[%clk 0:00:21.3]} 65... Kd8 {[%clk
0:00:03.1]} 66. Re6 {[%clk 0:00:21.7]} 66... Kc8 {[%clk 0:00:03.4]} 67. Re8+
{[%clk 0:00:21.9]} 67... Rd8 {[%clk 0:00:03.1]} 68. Re6 {[%clk 0:00:22.6]} 68...
Rd7 {[%clk 0:00:03]} 69. Re2 {[%clk 0:00:22.6]} 69... Rd8 {[%clk 0:00:02.2]} 70.
Rc2+ {[%clk 0:00:22.5]} 70... Kb8 {[%clk 0:00:02.5]} 71. Rf2 {[%clk 0:00:20.6]}
71... Rd6+ {[%clk 0:00:02.6]} 72. Kc5 {[%clk 0:00:21.2]} 72... Rc6+ {[%clk
0:00:02.7]} 73. Kb4 {[%clk 0:00:21.8]} 73... Ka7 {[%clk 0:00:03.6]} 74. Rf7
{[%clk 0:00:21.8]} 74... Rh6 {[%clk 0:00:03.8]} 75. Re7 {[%clk 0:00:22.2]} 75...
Rh5 {[%clk 0:00:04]} 76. Ka4 {[%clk 0:00:22.1]} 76... Rh4+ {[%clk 0:00:04.2]}
77. Ka3 {[%clk 0:00:22.3]} 77... Rc4 {[%clk 0:00:04.6]} 78. Kb3 {[%clk
0:00:22.7]} 78... Rc5 {[%clk 0:00:04.9]} 79. Kb4 {[%clk 0:00:23.4]} 79... Rb5+
{[%clk 0:00:05.2]} 80. Ka4 {[%clk 0:00:24.1]} 80... Rb1 {[%clk 0:00:05.3]} 81.
Rd7 {[%clk 0:00:24.7]} 81... Ra1+ {[%clk 0:00:05.5]} 82. Kb4 {[%clk 0:00:25.3]}
82... Rf1 {[%clk 0:00:06]} 83. Rd6 {[%clk 0:00:25.4]} 83... Rf5 {[%clk
0:00:06.2]} 84. Ka4 {[%clk 0:00:25.7]} 84... Rf4+ {[%clk 0:00:06.7]} 85. Kb3
{[%clk 0:00:25.9]} 85... Kb8 {[%clk 0:00:06.7]} 86. Rh6 {[%clk 0:00:25]} 86...
Rd4 {[%clk 0:00:05.6]} 87. Rg6 {[%clk 0:00:25.4]} 87... Kc7 {[%clk 0:00:03.9]}
88. Rf6 {[%clk 0:00:25.8]} 88... Rd6 {[%clk 0:00:03.9]} 89. Rf7+ {[%clk
0:00:24.1]} 89... Kc6 {[%clk 0:00:04.3]} 90. Kc4 {[%clk 0:00:24.5]} 90... Rg6
{[%clk 0:00:04.1]} 91. Re7 {[%clk 0:00:24.7]} 91... Rg4+ {[%clk 0:00:04.2]} 92.
Kb3 {[%clk 0:00:25.3]} 92... Rd4 {[%clk 0:00:02.9]} 93. Kc3 {[%clk 0:00:25.6]}
93... Rd5 {[%clk 0:00:02.4]} 94. Kb4 {[%clk 0:00:25.2]} 94... Rd6 {[%clk
0:00:02.2]} 95. Re1 {[%clk 0:00:24.6]} 95... Rg6 {[%clk 0:00:02.1]} 96. Rc1+
{[%clk 0:00:24.7]} 96... Kd7 {[%clk 0:00:02.4]} 97. Rd1+ {[%clk 0:00:24.2]}
97... Rd6 {[%clk 0:00:02.6]} 98. Rf1 {[%clk 0:00:24.5]} 98... Kc7 {[%clk
0:00:02.7]} 99. Rf7+ {[%clk 0:00:24.2]} 99... Kc6 {[%clk 0:00:02.8]} 100. Rf4
{[%clk 0:00:24]} 100... Rd5 {[%clk 0:00:02.8]} 101. Rc4+ {[%clk 0:00:24.2]}
101... Kd6 {[%clk 0:00:03.2]} 102. Rc8 {[%clk 0:00:24.4]} 102... Rb5+ {[%clk
0:00:03]} 103. Ka4 {[%clk 0:00:24.5]} 103... Rc5 {[%clk 0:00:03.6]} 104. Rd8+
{[%clk 0:00:24.6]} 104... Kc7 {[%clk 0:00:02.6]} 105. Rd1 {[%clk 0:00:23.5]}
105... Rc6 {[%clk 0:00:02.4]} 106. Kb4 {[%clk 0:00:23.6]} 106... Rd6 {[%clk
0:00:02.5]} 107. Rc1+ {[%clk 0:00:23.8]} 107... Rc6 {[%clk 0:00:02.8]} 108. Rh1
{[%clk 0:00:24.2]} 1/2-1/2

[Event "Early-Titled-Tuesday-Blitz-January-23-2024"]
[Site "Chess.com"]
[Date "2024.01.23"]
[Round "2"]
[White "KIEV-1"]
[Black "AttilaTurzo"]
[Result "0-1"]
[WhiteElo "2247"]
[BlackElo "2504"]
[TimeControl "180+1"]
[EndTime "8:11:58 PST"]
[Termination "AttilaTurzo won by resignation"]

1. e4 {[%clk 0:03:00.9]} 1... c5 {[%clk 0:02:59.8]} 2. Nf3 {[%clk 0:03:00.8]}
2... d6 {[%clk 0:02:59.8]} 3. d4 {[%clk 0:03:01.5]} 3... cxd4 {[%clk 0:03:00.7]}
4. Nxd4 {[%clk 0:03:02]} 4... Nf6 {[%clk 0:03:01.2]} 5. Nc3 {[%clk 0:03:02.6]}
5... a6 {[%clk 0:03:01.7]} 6. Bg5 {[%clk 0:03:02.8]} 6... e6 {[%clk 0:03:00.4]}
7. f4 {[%clk 0:03:03.3]} 7... Be7 {[%clk 0:03:00]} 8. Qf3 {[%clk 0:03:03.5]}
8... Qc7 {[%clk 0:03:00.4]} 9. O-O-O {[%clk 0:03:03.8]} 9... Nbd7 {[%clk
0:02:58.4]} 10. g4 {[%clk 0:03:03.8]} 10... b5 {[%clk 0:02:43]} 11. a3 {[%clk
0:03:03.7]} 11... Bb7 {[%clk 0:02:43.1]} 12. h4 {[%clk 0:03:01.4]} 12... h6
{[%clk 0:02:34.8]} 13. Bxf6 {[%clk 0:03:01.4]} 13... Bxf6 {[%clk 0:02:35.3]} 14.
g5 {[%clk 0:02:57.7]} 14... hxg5 {[%clk 0:02:29.4]} 15. hxg5 {[%clk 0:02:58.6]}
15... Rxh1 {[%clk 0:02:23.3]} 16. Qxh1 {[%clk 0:02:59.5]} 16... Bxd4 {[%clk
0:02:15.5]} 17. Qh8+ {[%clk 0:02:57.1]} 17... Ke7 {[%clk 0:02:13.2]} 0-1

[Event "Early-Titled-Tuesday-Blitz-January-23-2024"]
[Site "Chess.com"]
[Date "2024.01.23"]
[Round "2"]
[White "SashaKuzhilniy"]
[Black "LileKoridze"]
[Result "1-0"]
[WhiteElo "2651"]
[BlackElo "2284"]
[TimeControl "180+1"]
[EndTime "8:13:36 PST"]
[Termination "SashaKuzhilniy won by resignation"]

1. d4 {[%clk 0:03:00.9]} 1... Nf6 {[%clk 0:02:59.7]} 2. Nf3 {[%clk 0:03:00.1]}
2... d5 {[%clk 0:02:59.8]} 3. e3 {[%clk 0:02:59.9]} 3... e6 {[%clk 0:02:59.9]}
4. Be2 {[%clk 0:02:59.8]} 4... Bd6 {[%clk 0:02:59.8]} 5. O-O {[%clk 0:03:00.1]}
5... O-O {[%clk 0:02:59.9]} 6. Nbd2 {[%clk 0:03:00.8]} 6... c5 {[%clk
0:03:00.3]} 7. b3 {[%clk 0:03:00.2]} 7... Nc6 {[%clk 0:03:00.2]} 8. Bb2 {[%clk
0:03:00.5]} 8... Re8 {[%clk 0:02:58]} 9. c4 {[%clk 0:03:00.5]} 9... cxd4 {[%clk
0:02:57.1]} 10. Nxd4 {[%clk 0:02:58.9]} 10... e5 {[%clk 0:02:56.6]} 11. Nb5
{[%clk 0:02:51.3]} 11... Bb8 {[%clk 0:02:55.6]} 12. cxd5 {[%clk 0:02:50.8]}
12... Qxd5 {[%clk 0:02:55.4]} 13. Nf3 {[%clk 0:02:19.7]} 13... Qe6 {[%clk
0:02:39.7]} 14. Bc4 {[%clk 0:02:15.2]} 14... Qe7 {[%clk 0:02:39.2]} 15. Ba3
{[%clk 0:02:14.5]} 15... Qd8 {[%clk 0:02:36.6]} 16. Ng5 {[%clk 0:02:04.2]} 16...
Qxd1 {[%clk 0:02:03.8]} 17. Bxf7+ {[%clk 0:01:46.2]} 17... Kh8 {[%clk
0:02:03.4]} 18. Rfxd1 {[%clk 0:01:46.1]} 18... Rd8 {[%clk 0:02:02.3]} 19. Bc4
{[%clk 0:01:39.4]} 1-0

[Event "Early-Titled-Tuesday-Blitz-January-23-2024"]
[Site "Chess.com"]
[Date "2024.01.23"]
[Round "2"]
[White "Chernov_Mikhail"]
[Black "tsaruk_maks"]
[Result "0-1"]
[WhiteElo "2403"]
[BlackElo "2759"]
[TimeControl "180+1"]
[EndTime "8:13:43 PST"]
[Termination "tsaruk_maks won by resignation"]

1. e4 {[%clk 0:03:00.9]} 1... e6 {[%clk 0:02:58.3]} 2. d3 {[%clk 0:03:00.8]}
2... d5 {[%clk 0:02:59.2]} 3. Nd2 {[%clk 0:03:01.2]} 3... g6 {[%clk 0:02:59.2]}
4. Ngf3 {[%clk 0:03:01.2]} 4... Bg7 {[%clk 0:02:59.7]} 5. g3 {[%clk 0:03:01.5]}
5... c5 {[%clk 0:02:58.5]} 6. Bg2 {[%clk 0:03:01.6]} 6... Ne7 {[%clk 0:02:58.9]}
7. O-O {[%clk 0:03:01.9]} 7... Nbc6 {[%clk 0:02:58.1]} 8. Re1 {[%clk 0:03:01.3]}
8... O-O {[%clk 0:02:58.7]} 9. e5 {[%clk 0:02:59.5]} 9... Qc7 {[%clk 0:02:57.7]}
10. Qe2 {[%clk 0:02:59.7]} 10... b5 {[%clk 0:02:51.2]} 11. h4 {[%clk 0:02:58.7]}
11... h6 {[%clk 0:02:46.5]} 12. Nf1 {[%clk 0:02:59.1]} 12... a5 {[%clk
0:02:45.3]} 13. N1h2 {[%clk 0:02:59.5]} 13... b4 {[%clk 0:02:27.5]} 14. Ng4
{[%clk 0:02:51.9]} 14... Nf5 {[%clk 0:02:27.6]} 15. Bf4 {[%clk 0:02:46.5]} 15...
Ba6 {[%clk 0:02:16.7]} 16. Nf6+ {[%clk 0:02:38.8]} 16... Kh8 {[%clk 0:02:16.8]}
17. h5 {[%clk 0:02:21.3]} 17... g5 {[%clk 0:02:02.7]} 18. Nxg5 {[%clk
0:02:21.4]} 18... hxg5 {[%clk 0:02:02.9]} 19. Bxg5 {[%clk 0:02:22.3]} 19... Nfd4
{[%clk 0:01:56.6]} 20. Qg4 {[%clk 0:02:17.7]} 20... Nxe5 {[%clk 0:01:56.7]} 21.
Qh3 {[%clk 0:01:49.3]} 21... Nef3+ {[%clk 0:01:52.9]} 22. Bxf3 {[%clk
0:01:49.2]} 22... Nxf3+ {[%clk 0:01:53.5]} 23. Kg2 {[%clk 0:01:49.9]} 23... Nxg5
{[%clk 0:01:53.5]} 0-1

[Event "Early-Titled-Tuesday-Blitz-January-23-2024"]
[Site "Chess.com"]
[Date "2024.01.23"]
[Round "2"]
[White "RaneshRatnesan"]
[Black "Perecke"]
[Result "0-1"]
[WhiteElo "2331"]
[BlackElo "2551"]
[TimeControl "180+1"]
[EndTime "8:13:52 PST"]
[Termination "Perecke won by checkmate"]

1. d4 {[%clk 0:03:00.9]} 1... Nf6 {[%clk 0:02:58.9]} 2. c4 {[%clk 0:02:59.6]}
2... e6 {[%clk 0:02:58.3]} 3. Nc3 {[%clk 0:03:00.2]} 3... d5 {[%clk 0:02:58.3]}
4. Bf4 {[%clk 0:02:58.6]} 4... Be7 {[%clk 0:02:57.7]} 5. e3 {[%clk 0:02:58.8]}
5... O-O {[%clk 0:02:57.3]} 6. Nf3 {[%clk 0:02:59.3]} 6... c6 {[%clk 0:02:55.5]}
7. h3 {[%clk 0:02:54.8]} 7... Nbd7 {[%clk 0:02:51.1]} 8. c5 {[%clk 0:02:40.8]}
8... a5 {[%clk 0:02:48.6]} 9. a3 {[%clk 0:02:40]} 9... b6 {[%clk 0:02:47.6]} 10.
b4 {[%clk 0:02:39.8]} 10... Ba6 {[%clk 0:02:47.9]} 11. Bxa6 {[%clk 0:02:39.2]}
11... Rxa6 {[%clk 0:02:48.8]} 12. Qd3 {[%clk 0:02:39.5]} 12... Qa8 {[%clk
0:02:43.1]} 13. b5 {[%clk 0:02:32.3]} 13... cxb5 {[%clk 0:02:40.7]} 14. Nxb5
{[%clk 0:02:33.2]} 14... Qb7 {[%clk 0:02:25.6]} 15. cxb6 {[%clk 0:02:14.8]}
15... Rxb6 {[%clk 0:02:26.5]} 16. a4 {[%clk 0:02:13.4]} 16... Bb4+ {[%clk
0:02:25.6]} 17. Ke2 {[%clk 0:02:14.1]} 17... Rc6 {[%clk 0:02:16.6]} 18. Rhc1
{[%clk 0:02:14]} 18... Rfc8 {[%clk 0:02:16.7]} 19. Kd1 {[%clk 0:02:04.6]} 19...
Ne4 {[%clk 0:02:15.8]} 20. Qe2 {[%clk 0:01:57.2]} 20... Nb6 {[%clk 0:02:06.6]}
21. Ne5 {[%clk 0:01:55.6]} 21... Rxc1+ {[%clk 0:02:06.4]} 22. Rxc1 {[%clk
0:01:56.4]} 22... Rxc1+ {[%clk 0:02:06.9]} 23. Kxc1 {[%clk 0:01:57.1]} 23...
Nxa4 {[%clk 0:02:07.8]} 24. f3 {[%clk 0:01:50.7]} 24... Nac3 {[%clk 0:01:47.8]}
25. Nxc3 {[%clk 0:01:49.9]} 25... Ba3+ {[%clk 0:01:48.2]} 26. Kc2 {[%clk
0:01:44.4]} 26... Qb2+ {[%clk 0:01:48.1]} 27. Kd3 {[%clk 0:01:45]} 27... Qxc3#
{[%clk 0:01:48.2]} 0-1

[Event "Early-Titled-Tuesday-Blitz-January-23-2024"]
[Site "Chess.com"]
[Date "2024.01.23"]
[Round "2"]
[White "sergeikim"]
[Black "ClaudiaSof"]
[Result "1-0"]
[WhiteElo "2515"]
[BlackElo "2267"]
[TimeControl "180+1"]
[EndTime "8:14:32 PST"]
[Termination "sergeikim won by resignation"]

1. d4 {[%clk 0:03:00.9]} 1... Nf6 {[%clk 0:02:58]} 2. c4 {[%clk 0:03:01]} 2...
c5 {[%clk 0:02:57.3]} 3. d5 {[%clk 0:03:00.8]} 3... e6 {[%clk 0:02:56.8]} 4. Nc3
{[%clk 0:03:01]} 4... exd5 {[%clk 0:02:56.2]} 5. cxd5 {[%clk 0:03:01.9]} 5... d6
{[%clk 0:02:56]} 6. e4 {[%clk 0:03:02.3]} 6... g6 {[%clk 0:02:54.8]} 7. Nge2
{[%clk 0:03:02.4]} 7... Bg7 {[%clk 0:02:54.1]} 8. Ng3 {[%clk 0:03:02.5]} 8... h5
{[%clk 0:02:45.6]} 9. Be2 {[%clk 0:03:01.5]} 9... h4 {[%clk 0:02:45.2]} 10. Nf1
{[%clk 0:03:01.6]} 10... Nbd7 {[%clk 0:02:26.4]} 11. Bg5 {[%clk 0:02:57.9]}
11... h3 {[%clk 0:02:06.2]} 12. g4 {[%clk 0:02:57.2]} 12... O-O {[%clk
0:02:01.3]} 13. Ng3 {[%clk 0:02:54.3]} 13... Re8 {[%clk 0:01:39]} 14. f3 {[%clk
0:02:54]} 14... a6 {[%clk 0:01:34.9]} 15. a4 {[%clk 0:02:52.9]} 15... Qc7 {[%clk
0:01:32]} 16. O-O {[%clk 0:02:51]} 16... c4 {[%clk 0:01:30.9]} 17. Kh1 {[%clk
0:02:47.7]} 17... Rb8 {[%clk 0:01:30.1]} 18. Qd2 {[%clk 0:02:43.8]} 18... b5
{[%clk 0:01:22.3]} 19. axb5 {[%clk 0:02:40.5]} 19... axb5 {[%clk 0:01:21.5]} 20.
Rac1 {[%clk 0:02:36.6]} 20... Nc5 {[%clk 0:01:16.1]} 21. Qf4 {[%clk 0:02:31.3]}
21... Nfd7 {[%clk 0:00:56.1]} 22. Nf5 {[%clk 0:02:20.7]} 22... gxf5 {[%clk
0:00:54.3]} 23. gxf5 {[%clk 0:02:20.9]} 23... Ne5 {[%clk 0:00:52.5]} 24. Rg1
{[%clk 0:02:13.3]} 24... f6 {[%clk 0:00:48.1]} 25. Bxf6 {[%clk 0:02:09.9]} 1-0

[Event "Early-Titled-Tuesday-Blitz-January-23-2024"]
[Site "Chess.com"]
[Date "2024.01.23"]
[Round "2"]
[White "LeoWin2012"]
[Black "Practical-Play"]
[Result "0-1"]
[WhiteElo "2197"]
[BlackElo "2487"]
[TimeControl "180+1"]
[EndTime "8:14:32 PST"]
[Termination "Practical-Play won by resignation"]

1. e4 {[%clk 0:03:00.9]} 1... c5 {[%clk 0:02:32.5]} 2. Nf3 {[%clk 0:03:00.3]}
2... Nf6 {[%clk 0:02:28.9]} 3. Nc3 {[%clk 0:02:55.4]} 3... e6 {[%clk 0:02:27.4]}
4. d4 {[%clk 0:02:54.3]} 4... cxd4 {[%clk 0:02:27.5]} 5. Nxd4 {[%clk 0:02:55.2]}
5... Nc6 {[%clk 0:02:27.7]} 6. g3 {[%clk 0:02:44.9]} 6... Bb4 {[%clk 0:02:26.1]}
7. Bg2 {[%clk 0:02:40.3]} 7... O-O {[%clk 0:02:16.4]} 8. O-O {[%clk 0:02:40]}
8... Bxc3 {[%clk 0:02:03]} 9. bxc3 {[%clk 0:02:39.2]} 9... d5 {[%clk 0:02:02]}
10. exd5 {[%clk 0:02:33.1]} 10... Nxd5 {[%clk 0:01:58.8]} 11. Nxc6 {[%clk
0:02:27.6]} 11... bxc6 {[%clk 0:01:59.7]} 12. Bb2 {[%clk 0:02:25]} 12... Rb8
{[%clk 0:01:58.2]} 13. Rb1 {[%clk 0:02:01.2]} 13... Qf6 {[%clk 0:01:56]} 14. Qd4
{[%clk 0:01:56.8]} 14... Qxd4 {[%clk 0:01:39.9]} 15. cxd4 {[%clk 0:01:57.7]}
15... Ba6 {[%clk 0:01:39.8]} 16. Rfe1 {[%clk 0:01:48.8]} 16... Bc4 {[%clk
0:01:39.1]} 17. a3 {[%clk 0:01:47.6]} 17... Ba2 {[%clk 0:01:38.2]} 18. Bxd5
{[%clk 0:01:35.3]} 18... cxd5 {[%clk 0:01:36]} 19. c3 {[%clk 0:01:20.8]} 19...
Bxb1 {[%clk 0:01:25]} 20. Rxb1 {[%clk 0:01:20]} 20... Rb7 {[%clk 0:01:21.7]} 0-1

[Event "Early-Titled-Tuesday-Blitz-January-23-2024"]
[Site "Chess.com"]
[Date "2024.01.23"]
[Round "2"]
[White "kibromNNN"]
[Black "Shahdad2007"]
[Result "0-1"]
[WhiteElo "1647"]
[BlackElo "2431"]
[TimeControl "180+1"]
[EndTime "8:14:36 PST"]
[Termination "Shahdad2007 won by resignation"]

1. d4 {[%clk 0:02:55.6]} 1... Nf6 {[%clk 0:02:29.3]} 2. c4 {[%clk 0:02:53.4]}
2... c6 {[%clk 0:02:29.2]} 3. Nc3 {[%clk 0:02:49.9]} 3... d5 {[%clk 0:02:29.7]}
4. Nf3 {[%clk 0:02:46]} 4... dxc4 {[%clk 0:02:29.9]} 5. e4 {[%clk 0:02:44.9]}
5... b5 {[%clk 0:02:29.4]} 6. e5 {[%clk 0:02:39.7]} 6... Nd5 {[%clk 0:02:29.5]}
7. Nd2 {[%clk 0:02:39.6]} 7... e6 {[%clk 0:02:22.2]} 8. Nde4 {[%clk 0:02:37.9]}
8... Be7 {[%clk 0:02:21.9]} 9. Be2 {[%clk 0:02:36]} 9... O-O {[%clk 0:02:21.7]}
10. O-O {[%clk 0:02:34.8]} 10... Bb7 {[%clk 0:02:16.3]} 11. f4 {[%clk
0:02:33.2]} 11... Nd7 {[%clk 0:02:13.4]} 12. f5 {[%clk 0:02:30.4]} 12... exf5
{[%clk 0:02:12.3]} 13. Rxf5 {[%clk 0:02:29.2]} 13... b4 {[%clk 0:02:08.4]} 14.
Na4 {[%clk 0:02:17.4]} 14... c5 {[%clk 0:02:02.5]} 15. Naxc5 {[%clk 0:02:05.3]}
15... Nxc5 {[%clk 0:02:01.9]} 16. Nxc5 {[%clk 0:01:59.9]} 16... Bxc5 {[%clk
0:02:01.9]} 17. dxc5 {[%clk 0:01:59.6]} 17... c3 {[%clk 0:02:02.8]} 18. Bc4
{[%clk 0:01:52.2]} 18... cxb2 {[%clk 0:01:58.8]} 19. Bxb2 {[%clk 0:01:48.4]}
19... Ne3 {[%clk 0:01:59.3]} 20. Qxd8 {[%clk 0:01:39.7]} 20... Raxd8 {[%clk
0:02:00.2]} 21. Rf4 {[%clk 0:01:39.2]} 21... Rd2 {[%clk 0:02:00.7]} 22. e6
{[%clk 0:01:17.1]} 22... Rxg2+ {[%clk 0:02:00.2]} 23. Kh1 {[%clk 0:01:06.6]}
23... Rg3+ {[%clk 0:01:58.2]} 0-1

[Event "Early-Titled-Tuesday-Blitz-January-23-2024"]
[Site "Chess.com"]
[Date "2024.01.23"]
[Round "2"]
[White "DefiantChair"]
[Black "I_am_Javi"]
[Result "0-1"]
[WhiteElo "2539"]
[BlackElo "2784"]
[TimeControl "180+1"]
[EndTime "8:14:38 PST"]
[Termination "I_am_Javi won by resignation"]

1. e4 {[%clk 0:02:06.3]} 1... e5 {[%clk 0:02:59.8]} 2. Nf3 {[%clk 0:02:06.3]}
2... Nc6 {[%clk 0:03:00.2]} 3. Bb5 {[%clk 0:02:07]} 3... f5 {[%clk 0:03:00.7]}
4. d3 {[%clk 0:02:06.9]} 4... fxe4 {[%clk 0:03:00.9]} 5. dxe4 {[%clk 0:02:07.8]}
5... Nf6 {[%clk 0:03:01.6]} 6. Nc3 {[%clk 0:02:07.6]} 6... Bb4 {[%clk
0:03:01.6]} 7. O-O {[%clk 0:02:07.2]} 7... Bxc3 {[%clk 0:03:02.2]} 8. bxc3
{[%clk 0:02:08.1]} 8... d6 {[%clk 0:03:02.9]} 9. h3 {[%clk 0:01:59.6]} 9... O-O
{[%clk 0:03:02.3]} 10. Bc4+ {[%clk 0:01:59.4]} 10... Kh8 {[%clk 0:03:02.7]} 11.
Re1 {[%clk 0:01:59.6]} 11... Qe8 {[%clk 0:03:00.9]} 12. Bg5 {[%clk 0:01:58.8]}
12... Nh5 {[%clk 0:03:00.6]} 13. Nh4 {[%clk 0:01:47.8]} 13... Nf4 {[%clk
0:02:55.6]} 14. Bxf4 {[%clk 0:01:31.5]} 14... Rxf4 {[%clk 0:02:56.5]} 15. g3
{[%clk 0:01:31.5]} 15... Rf6 {[%clk 0:02:55.7]} 16. Bf1 {[%clk 0:01:30.1]} 16...
Qf7 {[%clk 0:02:46.5]} 17. Qe2 {[%clk 0:01:23.8]} 17... g5 {[%clk 0:02:45.9]}
18. Nf5 {[%clk 0:01:21.1]} 18... Bxf5 {[%clk 0:02:46]} 19. exf5 {[%clk 0:01:22]}
19... Rxf5 {[%clk 0:02:46.7]} 20. Rab1 {[%clk 0:01:21.9]} 20... Rf8 {[%clk
0:02:46.4]} 21. Rxb7 {[%clk 0:01:18.2]} 21... Rxf2 {[%clk 0:02:43.7]} 22. Qc4
{[%clk 0:01:17.4]} 22... d5 {[%clk 0:02:35.4]} 23. Qd3 {[%clk 0:01:12.7]} 23...
Rf3 {[%clk 0:02:31.2]} 24. Qe2 {[%clk 0:01:11.1]} 24... Rf2 {[%clk 0:02:27.5]}
25. Qd3 {[%clk 0:01:10.7]} 25... e4 {[%clk 0:02:26.7]} 26. Qa6 {[%clk
0:01:06.2]} 26... Rxc2 {[%clk 0:01:58.5]} 0-1

[Event "Early-Titled-Tuesday-Blitz-January-23-2024"]
[Site "Chess.com"]
[Date "2024.01.23"]
[Round "2"]
[White "Binary010"]
[Black "SCIM"]
[Result "1-0"]
[WhiteElo "2888"]
[BlackElo "2586"]
[TimeControl "180+1"]
[EndTime "8:14:40 PST"]
[Termination "Binary010 won by resignation"]

1. e4 {[%clk 0:03:00.9]} 1... e5 {[%clk 0:02:29.7]} 2. Nf3 {[%clk 0:02:52.4]}
2... Nc6 {[%clk 0:02:29.4]} 3. Bc4 {[%clk 0:02:51.5]} 3... Bc5 {[%clk
0:02:28.2]} 4. c3 {[%clk 0:02:51.8]} 4... Nf6 {[%clk 0:02:27.9]} 5. d4 {[%clk
0:02:52.1]} 5... exd4 {[%clk 0:02:27.7]} 6. b4 {[%clk 0:02:52.6]} 6... Bb6
{[%clk 0:02:24.2]} 7. e5 {[%clk 0:02:48.2]} 7... d5 {[%clk 0:02:20.4]} 8. exf6
{[%clk 0:02:46.7]} 8... dxc4 {[%clk 0:02:20.1]} 9. Qe2+ {[%clk 0:02:42.9]} 9...
Be6 {[%clk 0:02:18.2]} 10. b5 {[%clk 0:02:43.3]} 10... d3 {[%clk 0:01:58.5]} 11.
Qe4 {[%clk 0:02:41.7]} 11... Qxf6 {[%clk 0:01:34.6]} 12. bxc6 {[%clk 0:02:35]}
12... O-O-O {[%clk 0:01:28.9]} 13. cxb7+ {[%clk 0:02:30.5]} 13... Kb8 {[%clk
0:01:24.8]} 14. Bg5 {[%clk 0:02:20.1]} 14... d2+ {[%clk 0:01:00.4]} 15. Kd1
{[%clk 0:02:03.2]} 15... Bd5 {[%clk 0:00:54.4]} 16. Bxf6 {[%clk 0:02:02.9]}
16... Bxe4 {[%clk 0:00:53.7]} 17. Bxd8 {[%clk 0:02:03]} 17... Rxd8 {[%clk
0:00:38.8]} 18. Nbxd2 {[%clk 0:02:00.6]} 18... Bxf2 {[%clk 0:00:37.5]} 19. Ke2
{[%clk 0:01:48.4]} 1-0